bitfinex/quotes_ETHUSD_20260305
["timestamp","ask_amount","ask_price","bid_price","bid_amount"]
[1772733996334,0.52260783,2063.0,2062.1,1.21235633]
[1772733996515,0.52260783,2063.0,2062.2,0.785]
[1772733996838,1.21180364,2063.1,2062.2,0.785]
[1772733997240,5.37058336,2063.2,2062.3,1.21223876]
[1772733997459,1.73531779,2063.2,2062.3,1.21223876]
[1772733997626,0.52260783,2063.1,2062.2,2.08159324]
[1772733997823,0.52260783,2063.1,2062.2,1.99725586]
[1772733998815,0.52260783,2063.1,2062.2,2.08511694]
[1772733999260,1.21182743,2063.0,2062.2,2.08511694]
[1772734000848,1.21182743,2063.0,2062.3,0.09470033]
[1772734001650,0.52360783,2063.2,2062.4,1.21217998]
[1772734002424,0.52360783,2063.2,2062.3,1.30689162]
[1772734002639,0.52260783,2063.0,2062.4,0.0011]
[1772734002852,0.52360783,2063.0,2062.0,1.99741012]
[1772734003223,0.52360783,2063.0,2062.1,0.1066518]
[1772734003543,0.001,2063.0,2062.1,0.1066518]
[1772734003725,0.001,2063.0,2062.2,1.31784934]
[1772734004244,3.39646851,2063.0,2062.1,1.21340906]
[1772734004444,0.52360783,2063.0,2062.1,0.0011]
[1772734004756,0.52260783,2062.8,2062.1,0.0011]
[1772734005056,0.52260783,2062.8,2061.9,0.0011]
[1772734005057,0.52260783,2062.6,2061.9,0.0011]
[1772734005251,0.52260783,2062.4,2061.9,0.0011]
[1772734005490,0.52260783,2062.2,2061.9,0.0011]
[1772734005771,2.28761071,2062.6,2061.9,0.0011]
[1772734005772,1.21217998,2062.4,2061.9,0.0011]
[1772734006630,1.21216902,2062.5,2061.9,0.0011]
[1772734006833,1.73477685,2062.5,2061.9,0.0011]
[1772734007224,0.52260783,2062.4,2061.9,0.0011]
[1772734007839,1.21223876,2062.3,2061.9,0.0011]
[1772734010029,1.73484659,2062.3,2061.9,0.0011]
[1772734010240,4.84844941,2062.6,2061.9,0.0011]
[1772734010539,1.21202726,2062.7,2061.9,0.12721868]
[1772734010933,0.52260783,2062.6,2061.9,0.0011]
[1772734011355,1.21202726,2062.7,2061.9,0.0011]
[1772734011554,1.21202726,2062.7,2061.9,0.12990197]
[1772734012052,4.84801473,2062.8,2061.9,1.34236406]
[1772734012362,0.52260783,2062.7,2061.9,0.0011]
[1772734013950,0.52260783,2062.7,2061.9,1.21357318]
[1772734014134,1.73463016,2062.7,2061.9,0.13760057]
[1772734014458,1.21188617,2062.9,2061.9,0.13760057]
[1772734016253,1.21188617,2062.9,2062.1,0.14244767]
[1772734016456,0.001,2062.7,2062.2,1.21229754]
[1772734016639,0.001,2062.7,2062.2,1.35364521]
[1772734017265,0.001,2063.0,2062.3,0.1436878]
[1772734018357,0.001,2063.0,2062.4,1.21217998]
[1772734018556,0.001,2063.0,2062.5,0.14497328]
[1772734018778,1.73412717,2063.6,2062.5,0.14497328]
[1772734019084,2.40040767,2063.8,2062.5,0.14497328]
[1772734019272,1.21140767,2063.8,2062.5,0.14497328]
[1772734019773,0.52260783,2063.7,2062.5,0.14497328]
[1772734020183,0.34655631,2064.1,2062.7,1.8765707]
[1772734020387,2.05192927,2063.9,2062.9,1.8765707]
[1772734020593,1.21135768,2063.8,2063.0,3.08839813]
[1772734020887,1.21124031,2064.0,2063.1,1.8765707]
[1772734021290,7.24335533,2064.1,2063.1,1.8765707]
[1772734021291,0.34655631,2064.1,2063.1,1.8765707]
[1772734022275,1.55774039,2064.1,2063.1,1.8765707]
[1772734022652,1.55774039,2064.1,2063.3,1.8765707]
[1772734022854,1.55774039,2064.1,2063.4,1.8765707]
[1772734023084,0.34655631,2064.1,2063.5,2.6615707]
[1772734023279,0.34655631,2064.1,2063.6,1.8765707]
[1772734023473,1.55774493,2064.1,2063.5,0.785]
[1772734023988,0.34655631,2064.1,2063.5,2.6615707]
[1772734024887,4.84348144,2064.7,2063.7,1.8765707]
[1772734025087,7.44622408,2065.2,2063.9,1.8765707]
[1772734025088,1.21065375,2065.0,2063.9,1.8765707]
[1772734025477,2.05192927,2064.9,2063.9,1.8765707]
[1772734025708,2.05192927,2064.9,2063.8,0.785]
[1772734025918,2.05192927,2064.9,2063.6,3.08804579]
[1772734026123,2.05192927,2064.9,2063.7,2.6605707]
[1772734026802,2.05192927,2064.7,2063.7,3.87192971]
[1772734026997,2.05192927,2064.7,2063.4,1.8765707]
[1772734027213,2.05192927,2064.7,2063.5,0.784]
[1772734027921,2.05192927,2064.7,2063.4,1.8765707]
[1772734028123,2.05192927,2064.7,2063.5,1.8765707]
[1772734029602,2.05192927,2064.7,2063.6,3.08804579]
[1772734029603,3.26281757,2064.6,2063.6,3.08804579]
[1772734029791,2.05192927,2064.5,2063.4,1.99555824]
[1772734029994,2.05192927,2064.5,2063.4,3.87212894]
[1772734030201,2.05192927,2064.5,2063.5,1.8765707]
[1772734030406,1.2108883,2064.6,2063.5,1.8765707]
[1772734030601,1.21186955,2064.7,2063.5,1.8765707]
[1772734030823,0.001,2064.7,2063.7,1.8765707]
[1772734031497,0.001,2064.7,2063.8,1.21135768]
[1772734031698,0.001,2064.7,2063.9,1.8765707]
[1772734031898,0.001,2064.7,2064.1,1.8765707]
[1772734032197,0.001,2064.7,2063.8,3.08792838]
[1772734032419,0.001,2064.7,2064.0,0.784]
[1772734033023,0.001,2064.7,2063.8,3.08792838]
[1772734033228,2.05292927,2064.7,2063.9,0.784]
[1772734033604,1.2108883,2064.6,2063.9,1.99524394]
[1772734034141,2.05192927,2064.5,2063.9,0.784]
[1772734035001,2.05192927,2064.5,2063.9,1.99529865]
[1772734035198,2.05192927,2064.5,2063.9,1.99528988]
[1772734035606,3.26293488,2064.4,2063.9,0.784]
[1772734037026,2.05192927,2064.3,2063.4,0.784]
[1772734037430,2.05192927,2064.3,2063.4,2.6605707]
[1772734037805,1.21112295,2064.2,2063.4,3.87215086]
[1772734039439,0.34471074,2065.5,2064.9,1.8765707]
[1772734039642,2.05192927,2066.4,2065.1,1.8765707]
[1772734039643,1.78408658,2066.4,2065.1,1.8765707]
[1772734039830,1.78408658,2066.4,2065.3,1.8765707]
[1772734039831,0.57421567,2066.4,2065.3,1.8765707]
[1772734040009,6.39904137,2067.5,2065.4,1.9421067]
[1772734040010,2.05192927,2066.7,2065.4,1.9421067]
[1772734040444,2.15487787,2066.8,2065.5,1.8765707]
[1772734040657,2.05192927,2066.7,2065.6,0.784]
[1772734041367,2.05192927,2066.7,2065.3,0.784]
[1772734041530,2.05192927,2066.7,2065.2,1.2105365]
[1772734041725,2.15487787,2066.8,2065.0,1.21062306]
[1772734041726,2.05192927,2066.3,2065.0,1.21062306]
[1772734042031,2.05192927,2066.3,2064.9,0.57403933]
[1772734042032,2.05192927,2066.1,2064.9,1.78471397]
[1772734042227,2.05192927,2066.1,2064.9,0.57403933]
[1772734042559,1.182,2066.2,2064.9,0.57403933]
[1772734042560,2.05192927,2065.7,2064.9,0.57403933]
[1772734042760,2.05192927,2065.7,2064.4,1.2109756]
[1772734042761,2.05192927,2065.7,2064.4,0.10013078]
[1772734043927,2.05192927,2065.5,2064.5,1.21094696]
[1772734044160,2.05192927,2065.4,2064.5,1.21094696]
[1772734044555,2.05192927,2065.4,2064.4,1.3110977]
[1772734046342,3.26235018,2065.4,2064.4,1.3110977]
[1772734046538,2.05192927,2065.4,2064.4,1.3110977]
[1772734046959,2.05192927,2065.4,2064.5,0.73216806]
[1772734047752,3.2623528,2065.4,2064.5,0.73216806]
[1772734048175,2.05192927,2065.4,2064.6,1.2108883]
[1772734048380,1.183,2065.5,2064.6,1.2108883]
[1772734048545,2.39338081,2065.5,2064.6,1.2108883]
[1772734048751,2.3933858,2065.5,2064.6,1.2108883]
[1772734049159,2.05872924,2065.4,2064.6,1.2108883]
[1772734049364,2.05872924,2065.4,2064.5,1.9430867]
[1772734050381,1.21047789,2065.3,2064.5,1.9430867]
[1772734050584,2.05214711,2065.2,2064.5,0.73216806]
[1772734051451,2.05214711,2065.0,2063.7,0.0011]
[1772734051756,2.05214711,2064.7,2063.7,0.0011]
[1772734051966,2.05214711,2064.5,2063.7,0.0011]
[1772734052358,2.05214711,2064.3,2063.7,0.0011]
[1772734052556,4.0714369,2064.4,2063.7,0.0011]
[1772734052557,3.23514711,2064.2,2063.7,0.0011]
[1772734053362,1.183,2064.4,2063.7,0.0011]
[1772734054874,1.21106428,2064.3,2063.7,0.0011]
[1772734055380,1.183,2064.4,2063.7,0.0011]
[1772734055780,2.05214711,2064.8,2063.7,0.0011]
[1772734055969,1.183,2064.7,2063.7,0.0011]
[1772734056176,3.23514711,2064.7,2063.7,0.0011]
[1772734056559,2.05214711,2064.7,2063.7,0.0011]
[1772734056883,2.39342561,2065.4,2063.9,2.03903794]
[1772734057080,3.26255418,2065.5,2063.9,2.04013794]
[1772734057576,1.21040707,2065.5,2063.9,2.04013794]
[1772734057774,2.39330404,2065.6,2064.1,2.03903794]
[1772734058084,2.05214711,2065.5,2064.1,2.03903794]
[1772734058461,2.39330404,2065.6,2064.1,2.03903794]
[1772734058657,1.21041928,2065.4,2064.2,1.21112295]
[1772734058965,2.05214711,2065.3,2064.2,3.25016089]
[1772734059159,4.33550738,2066.0,2064.3,2.03903794]
[1772734059361,4.33550738,2066.0,2064.4,2.03903794]
[1772734059362,2.05214711,2065.7,2064.4,2.03903794]
[1772734059688,2.05214711,2065.7,2064.2,1.21112295]
[1772734059886,2.05214711,2065.5,2064.2,1.21112295]
[1772734060587,2.05214711,2065.3,2064.2,1.21112295]
[1772734060761,3.26274223,2065.1,2064.1,1.21118162]
[1772734061363,1.21059512,2065.1,2064.0,3.25023763]
[1772734061589,2.05214711,2065.0,2064.0,1.21119969]
[1772734061788,2.05214711,2065.0,2063.9,0.0011]
[1772734061960,2.05214711,2064.8,2063.9,0.0011]
[1772734062690,2.05214711,2064.8,2063.9,1.2123985]
[1772734062996,3.26297677,2064.7,2063.9,0.0011]
[1772734063590,3.23514711,2064.7,2063.9,0.0011]
[1772734064171,1.183,2064.7,2063.9,0.0011]
[1772734064383,1.21079122,2064.8,2063.9,0.0011]
[1772734064694,4.445625,2065.3,2063.9,2.04013794]
[1772734064899,2.86569745,2065.2,2063.9,2.04013794]
[1772734065068,1.21059512,2065.1,2064.0,1.21124031]
[1772734065596,1.21059512,2065.1,2064.1,2.03903794]
[1772734066494,2.39357758,2065.2,2064.1,2.03903794]
[1772734067395,2.39357758,2065.2,2064.2,1.21112295]
[1772734067596,2.39357758,2065.2,2064.1,6.88352975]
[1772734067597,2.05214711,2065.1,2064.1,1.21114561]
[1772734067803,2.05214711,2065.1,2064.0,1.21119687]
[1772734068202,2.05214711,2065.1,2064.1,2.03903794]
[1772734068383,1.21057758,2065.2,2064.1,2.03903794]
[1772734069080,6.0250654,2065.3,2064.1,2.03903794]
[1772734069081,3.23514711,2065.4,2064.1,2.03903794]
[1772734069402,2.05214711,2065.2,2064.2,1.21112295]
[1772734070190,0.001,2065.0,2064.2,1.21112295]
[1772734072008,9.68249116,2065.7,2064.3,2.03903794]
[1772734072009,4.84057958,2065.7,2064.3,2.03903794]
[1772734072212,5.47717963,2066.1,2064.5,2.03903794]
[1772734072213,1.182,2066.0,2064.5,2.03903794]
[1772734072410,1.182,2066.0,2064.7,2.03903794]
[1772734073180,1.182,2066.0,2064.8,1.21077101]
[1772734073384,9.17484766,2066.4,2064.9,2.03903794]
[1772734073385,1.20989207,2066.3,2064.9,2.03903794]
[1772734074292,3.26201631,2066.4,2064.9,2.03903794]
[1772734074716,2.86981233,2066.3,2064.9,2.03903794]
[1772734074919,3.26201631,2066.4,2064.9,2.03903794]
[1772734075215,4.44396817,2066.5,2064.9,2.03903794]
[1772734075379,3.2286337,2066.8,2065.1,2.03903794]
[1772734075380,4.20705335,2066.8,2065.1,2.03903794]
[1772734075581,4.20705335,2066.8,2065.3,2.03903794]
[1772734075582,0.94527343,2066.8,2065.3,2.03903794]
[1772734075808,0.94527343,2066.8,2065.5,2.03903794]
[1772734076301,0.94527343,2066.8,2065.4,0.784]
[1772734076302,1e-08,2066.8,2065.9,2.03903794]
[1772734077390,1e-08,2066.8,2066.3,2.03903794]
[1772734078087,1e-08,2066.8,2066.3,1.86225521]
[1772734078301,1e-08,2066.8,2065.9,4.84027105]
[1772734078302,1e-08,2066.8,2065.9,3.24914835]
[1772734079128,1e-08,2066.8,2065.9,3.24915597]
[1772734079629,1e-08,2066.8,2066.0,2.03903794]
[1772734081132,1e-08,2066.8,2065.9,1.21011803]
[1772734081345,1e-08,2066.8,2065.6,1.94564327]
[1772734081346,1e-08,2066.8,2065.7,1.2102435]
[1772734081556,1e-08,2066.8,2065.8,1.94564327]
[1772734083441,1e-08,2066.8,2066.0,1.94564327]
[1772734084636,1e-08,2066.8,2065.9,1.21012633]
[1772734084819,0.001,2066.6,2065.9,1.21012633]
[1772734085015,0.001,2066.6,2066.0,1.94564327]
[1772734086311,0.001,2066.6,2065.8,1.21018491]
[1772734086510,0.001,2066.6,2065.8,3.15582818]
[1772734087310,0.001,2066.6,2065.8,1.21018491]
[1772734087735,0.001,2066.6,2065.9,1.94564327]
[1772734087910,0.001,2066.6,2065.8,1.21018491]
[1772734088319,1.21071644,2066.6,2065.7,4.84089775]
[1772734089019,0.001,2066.6,2065.7,4.84089775]
[1772734090022,2.07237858,2066.6,2065.7,1.2102435]
[1772734090414,1.20977498,2066.5,2065.7,1.2102435]
[1772734091552,3.28115356,2066.5,2065.6,1.21029594]
[1772734091714,3.28115356,2066.5,2065.3,1.21047789]
[1772734091715,2.07137858,2066.4,2065.3,1.21047789]
[1772734092053,2.07137858,2066.2,2065.1,1.21059512]
[1772734092221,2.07137858,2066.2,2065.0,1.07111491]
[1772734092222,2.07137858,2066.2,2065.0,4.22739337]
[1772734092421,1.21000919,2066.1,2065.2,1.2105365]
[1772734092836,1.21000919,2066.1,2065.1,1.21054982]
[1772734092837,2.07137858,2066.0,2065.1,1.21054982]
[1772734094038,1.21000919,2066.1,2065.1,3.15619309]
[1772734094426,2.38398157,2066.2,2065.1,3.15619309]
[1772734094652,2.38395509,2066.2,2065.1,3.15619309]
[1772734094830,1.20995509,2066.2,2065.2,1.94564327]
[1772734095034,3.28131416,2066.3,2065.2,1.94564327]
[1772734095461,2.07137858,2066.3,2065.2,1.94564327]
[1772734095632,3.24637858,2066.6,2065.2,1.94564327]
[1772734095837,2.07137858,2066.5,2065.4,1.94564327]
[1772734096758,1.20983352,2066.4,2065.5,1.21036068]
[1772734097053,1.20983352,2066.4,2065.1,4.84221493]
[1772734097054,2.07137858,2066.3,2065.1,3.15623839]
[1772734097252,2.07137858,2066.3,2065.0,2.28173832]
[1772734097426,2.07137858,2065.8,2065.0,2.28176241]
[1772734097621,1.174,2065.7,2065.0,2.28176241]
[1772734097826,1.174,2065.7,2065.0,2.28176747]
[1772734098143,2.07137858,2065.6,2065.0,0.25237619]
[1772734098556,2.07137858,2065.6,2065.3,0.0011]
[1772734099137,4.84092871,2065.8,2065.3,0.0011]
[1772734099448,6.01492871,2065.8,2065.3,0.0011]
[1772734099630,1.98575473,2065.8,2065.3,0.0011]
[1772734100030,1.98575473,2065.8,2065.0,0.25237619]
[1772734100550,2.00257771,2065.6,2065.0,0.25237619]
[1772734100772,1.173,2065.6,2065.0,1.46299286]
[1772734101095,1.173,2065.6,2065.0,0.25237619]
[1772734101096,1.21036068,2065.5,2065.0,0.25237619]
[1772734101685,2.38329092,2065.7,2065.1,1.21059512]
[1772734101855,2.38329092,2065.7,2065.0,1.46299049]
[1772734102577,2.38329092,2065.7,2065.0,0.25237619]
[1772734102947,4.37099761,2065.7,2065.0,0.25237619]
[1772734103350,1.98026161,2065.9,2065.0,1.46298722]
[1772734103561,1.17860527,2065.9,2065.0,0.25237619]
[1772734103776,1.98026161,2065.8,2065.0,0.25237619]
[1772734103973,1.98026161,2065.8,2065.0,1.46302533]
[1772734104278,1.98026161,2065.8,2065.0,0.25237619]
[1772734104498,3.15426161,2065.8,2065.0,0.25237619]
[1772734104651,1.97282126,2065.7,2065.0,0.25237619]
[1772734104851,1.174,2065.6,2065.1,1.21059512]
[1772734105051,1.174,2065.6,2065.0,1.46301602]
[1772734105251,1.174,2065.6,2065.0,3.40865929]
[1772734105464,1.174,2065.6,2065.1,1.94564327]
[1772734106479,4.83982724,2066.2,2065.1,1.94564327]
[1772734106480,4.84003678,2066.2,2065.1,1.94564327]
[1772734107152,2.38390544,2066.3,2065.3,1.94564327]
[1772734108892,1.81535502,2066.2,2065.3,1.94564327]
[1772734109101,1.81535502,2066.2,2065.1,1.21054819]
[1772734109303,1.21000919,2066.1,2065.1,1.21054819]
[1772734110294,1.92264278,2066.0,2065.0,3.46768922]
[1772734110478,1.92264278,2066.0,2065.1,1.98758455]
[1772734110680,1.21000919,2066.1,2065.1,1.98758455]
[1772734110884,3.13265197,2066.1,2065.1,1.98758455]
[1772734111505,3.13265197,2066.1,2065.2,1.2105365]
[1772734111726,1.92438018,2066.0,2065.0,0.25237619]
[1772734112017,1.21000919,2066.1,2065.0,0.25237619]
[1772734112018,1.92438018,2065.8,2065.0,0.25237619]
[1772734112205,1.174,2065.7,2065.0,1.46302341]
[1772734112503,1.17860527,2065.9,2065.0,1.46412341]
[1772734112672,1.17860527,2065.9,2065.1,1.98758455]
[1772734112673,2.35260527,2065.9,2065.1,1.98758455]
[1772734113573,1.21018491,2065.8,2065.2,1.2105365]
[1772734113972,7.19334493,2065.9,2065.2,1.2105365]
[1772734113973,1.174,2065.9,2065.2,3.19812105]
[1772734114309,0.001,2066.1,2065.3,1.98758455]
[1772734114613,2.38501779,2066.1,2065.3,1.98758455]
[1772734115170,1.175,2066.1,2065.3,1.98758455]
[1772734115382,0.001,2066.1,2065.3,1.98758455]
[1772734115699,0.001,2066.1,2065.5,1.98758455]
[1772734117946,0.001,2066.1,2065.6,1.21030209]
[1772734118834,0.001,2066.1,2065.6,3.19788664]
[1772734120127,1.20983352,2066.4,2065.6,3.19788664]
[1772734120128,2.2970124,2067.1,2066.8,1.98758455]
[1772734120326,14.86291564,2067.9,2066.1,1.98758455]
[1772734120327,1.85763214,2067.6,2066.1,1.98758455]
[1772734120531,1.85763214,2067.4,2066.1,1.98758455]
[1772734120732,1.85763214,2067.2,2066.1,1.98758455]
[1772734120922,4.72919003,2067.1,2066.1,1.98758455]
[1772734121118,1.85763214,2067.1,2066.1,1.98758455]
[1772734121298,1.85763214,2067.1,2065.8,1.98758455]
[1772734122247,1.95460081,2066.9,2065.9,3.19771088]
[1772734122527,1.20948234,2067.0,2066.0,1.98758455]
[1772734123728,1.20943636,2067.1,2066.0,1.98758455]
[1772734124929,1.95460081,2067.1,2066.1,1.21000919]
[1772734125867,4.83720171,2067.4,2066.2,1.98758455]
[1772734125868,6.79180252,2067.4,2066.2,1.98758455]
[1772734126046,0.001,2066.8,2066.2,1.98758455]
[1772734127432,0.001,2066.8,2066.3,3.19747662]
[1772734128182,3.32499302,2067.9,2066.5,1.98758455]
[1772734128487,1.95460081,2067.7,2066.5,1.98758455]
[1772734128771,1.95460081,2067.7,2066.3,1.20989207]
[1772734128967,1.95460081,2067.6,2066.3,1.20989207]
[1772734129478,1.20918984,2067.5,2066.2,1.98758455]
[1772734129640,1.95460081,2067.3,2066.0,1.21006776]
[1772734130154,1.95460081,2067.3,2065.9,3.19770717]
[1772734131764,1.95460081,2067.1,2065.9,3.19770717]
[1772734132001,3.12560081,2067.0,2065.9,3.19770717]
[1772734132362,1.95460081,2066.9,2065.9,3.19770717]
[1772734132557,1.95460081,2066.9,2065.9,1.98758455]
[1772734132907,1.95460081,2066.9,2065.7,1.98758455]
[1772734133202,3.12560081,2066.8,2065.7,1.98758455]
[1772734133385,1.171,2066.9,2065.7,1.98758455]
[1772734133753,1.20959938,2066.8,2065.8,1.21018491]
[1772734133998,1.20959938,2066.8,2065.9,1.98758455]
[1772734134307,3.16420019,2066.8,2065.9,1.98758455]
[1772734135372,1.20942383,2067.1,2065.9,1.98758455]
[1772734135571,1.171,2067.0,2065.9,1.98758455]
[1772734136187,1.20954085,2066.9,2066.0,1.21006776]
[1772734136396,1.20954085,2066.9,2065.9,6.8278556]
[1772734136397,1.95460081,2066.8,2065.9,3.19766551]
[1772734136614,1.95460081,2066.8,2065.3,0.786]
[1772734136615,1.95460081,2066.8,2065.6,1.98758455]
[1772734137278,1.20954085,2066.9,2065.6,1.98758455]
[1772734137279,2.37954085,2066.9,2065.6,1.98758455]
[1772734137670,1.17,2066.9,2065.6,1.98758455]
[1772734137868,1.17,2066.9,2065.7,1.98758455]
[1772734138162,1.20948257,2067.0,2066.1,0.0011]
[1772734138377,1.20948257,2067.0,2066.1,1.98868455]
[1772734139718,3.16408338,2067.0,2066.1,1.98868455]
[1772734140623,3.16408338,2067.0,2066.2,3.31543755]
[1772734141224,2.26017339,2066.9,2065.9,0.0011]
[1772734141509,2.26017339,2066.9,2065.9,1.21122529]
[1772734141808,1.17,2066.8,2065.9,3.31671221]
[1772734142122,2.26017339,2066.7,2065.9,0.0011]
[1772734142514,3.46988983,2066.6,2065.9,0.0011]
[1772734143808,2.26017339,2066.5,2065.9,0.0011]
[1772734144115,2.26017339,2066.5,2065.4,4.84154461]
[1772734144419,1.169,2066.4,2065.5,2.10548692]
[1772734144601,2.37885294,2066.4,2065.6,1.21030209]
[1772734144912,2.37885294,2066.4,2065.7,2.10548692]
[1772734145314,1.169,2066.4,2065.7,2.10548692]
[1772734145613,2.26017339,2066.3,2065.3,1.2104339]
[1772734146227,2.26017339,2066.3,2065.2,3.31710158]
[1772734146417,2.26017339,2066.2,2065.2,2.10658692]
[1772734146617,3.47018258,2066.1,2065.2,3.31710834]
[1772734147114,3.47018258,2066.1,2065.2,3.31711628]
[1772734147817,2.37900919,2066.1,2065.3,2.10548692]
[1772734148130,2.26017339,2066.0,2065.2,0.0011]
[1772734148318,2.26017339,2066.0,2065.2,1.21162323]
[1772734148506,2.26017339,2066.0,2065.2,0.0011]
[1772734148703,1.21012633,2065.9,2065.2,0.0011]
[1772734149117,3.47029972,2065.9,2065.2,0.0011]
[1772734149330,2.26017339,2065.8,2065.2,0.0011]
[1772734150629,1.17,2065.7,2065.2,0.0011]
[1772734150830,1.17,2065.6,2065.2,0.0011]
[1772734151032,1.2102435,2065.7,2065.2,0.0011]
[1772734151235,2.26017339,2066.5,2065.2,2.10658692]
[1772734151534,2.26017339,2066.5,2065.4,2.10658692]
[1772734151535,1.17,2066.2,2065.4,2.10658692]
[1772734151945,7.10049156,2066.5,2065.4,2.10658692]
[1772734151946,1.17,2066.3,2065.4,2.10658692]
[1772734152154,1.171,2066.5,2065.4,2.10658692]
[1772734152841,1.20983352,2066.4,2065.5,1.21036068]
[1772734153338,1.20983352,2066.4,2065.5,3.3158476]
[1772734154255,2.26017339,2066.3,2065.4,1.21147858]
[1772734155006,1.21081751,2066.5,2065.4,2.10658692]
[1772734155248,0.001,2066.5,2065.4,2.10658692]
[1772734155417,1.17,2066.4,2065.4,2.10658692]
[1772734156808,3.43017339,2066.4,2065.4,2.10658692]
[1772734157261,1.20989207,2066.3,2065.4,3.31697825]
[1772734157468,2.26017339,2066.2,2065.2,0.0011]
[1772734157617,2.26017339,2066.2,2065.3,2.10548692]
[1772734157618,1.17,2066.1,2065.3,2.10548692]
[1772734158677,2.26017339,2066.2,2065.3,2.10548692]
[1772734158828,1.17,2066.1,2065.3,2.10548692]
[1772734159214,1.21000919,2066.1,2065.3,2.10548692]
[1772734159514,1.21000919,2066.1,2065.2,0.0011]
[1772734159515,2.26017339,2065.9,2065.2,0.0011]
[1772734161119,2.26017339,2065.7,2065.2,0.0011]
[1772734161315,3.47047548,2065.6,2065.0,0.0011]
[1772734161554,6.01120836,2066.0,2065.0,0.0011]
[1772734161555,3.43447856,2066.2,2065.1,2.10548692]
[1772734161716,2.26017339,2066.0,2065.0,2.10658692]
[1772734162260,2.26017339,2065.7,2065.0,0.0011]
[1772734162424,1.171,2065.6,2065.0,0.0011]
[1772734162759,3.43117339,2065.6,2065.0,0.0011]
[1772734163328,2.26017339,2065.4,2065.0,0.0011]
[1772734163737,1.21036068,2065.5,2065.0,0.0011]
[1772734164178,1.21036068,2065.5,2064.7,0.0011]
[1772734164322,1.21036068,2065.5,2064.8,2.10548692]
[1772734165448,1.21036068,2065.5,2065.4,0.0011]
[1772734165625,1.21036068,2065.5,2064.8,3.31625752]
[1772734165819,1.21036068,2065.5,2064.8,3.31623895]
[1772734166047,6.01244274,2065.6,2065.1,0.0011]
[1772734166048,2.38132005,2065.6,2065.1,0.0011]
[1772734166368,1.171,2065.6,2065.1,0.0011]
[1772734166526,1.171,2065.6,2065.1,2.10658692]
[1772734166727,4.8406138,2065.9,2065.1,2.10658692]
[1772734166927,1.171,2065.8,2065.1,2.10658692]
[1772734167328,1.171,2065.8,2065.2,1.2105365]
[1772734167525,1.171,2065.8,2065.2,3.31602342]
[1772734167750,1.07631698,2065.8,2065.3,2.09164833]
[1772734168166,2.286508,2065.8,2065.3,2.09164833]
[1772734168324,2.286508,2065.8,2065.1,1.21164907]
[1772734168754,1.172,2065.7,2065.1,3.3032974]
[1772734169775,2.38227114,2065.7,2065.1,3.3032974]
[1772734170455,2.38224435,2065.7,2065.1,3.3032974]
[1772734170658,2.38224435,2065.7,2065.1,0.0011]
[1772734170846,2.38224435,2065.7,2065.1,1.21168667]
[1772734171156,2.38224435,2065.7,2065.1,0.0011]
[1772734171358,2.38224435,2065.7,2065.1,1.21168643]
[1772734171563,2.38224435,2065.7,2065.1,0.0011]
[1772734171867,2.38224435,2065.7,2064.9,0.0011]
[1772734171868,2.04826233,2065.6,2064.9,0.0011]
[1772734172970,1.172,2065.5,2064.9,2.00901312]
[1772734173837,1.172,2065.5,2065.1,2.00791312]
[1772734174634,0.001,2066.1,2065.1,2.00791312]
[1772734174928,1.173,2066.0,2065.1,2.00791312]
[1772734175864,2.38401145,2066.1,2065.3,2.00791312]
[1772734176084,2.38401515,2066.1,2065.3,2.00791312]
[1772734176446,1.174,2066.1,2065.3,2.00791312]
[1772734177035,0.001,2066.1,2065.3,2.00791312]
[1772734177963,0.001,2066.1,2065.5,2.00791312]
[1772734178334,0.001,2065.9,2065.5,2.00791312]
[1772734179865,0.001,2065.9,2065.5,4.84120836]
[1772734182048,0.001,2065.9,2065.5,5.14431014]
[1772734182263,0.001,2065.9,2065.5,4.84120836]
[1772734182944,16.001,2065.9,2065.4,4.84144486]
[1772734183341,16.001,2065.9,2065.4,5.55559191]
[1772734183851,16.001,2065.9,2065.4,4.84144486]
[1772734184037,16.001,2065.9,2065.4,5.55559191]
[1772734185441,16.001,2065.9,2065.5,0.70152598]
[1772734186038,7.22559668,2066.5,2065.6,1.07141106]
[1772734186239,1.20983352,2066.4,2065.6,1.07141106]
[1772734188676,3.59600931,2066.8,2065.7,2.00791312]
[1772734188888,4.83866276,2066.7,2065.7,2.00791312]
[1772734189452,2.38635141,2066.6,2065.4,2.30665938]
[1772734189646,2.38635141,2066.6,2065.5,2.00791312]
[1772734190369,0.001,2066.2,2065.6,1.21030209]
[1772734191005,0.001,2066.2,2065.5,3.2182723]
[1772734191160,0.001,2066.2,2065.2,0.798]
[1772734191161,0.001,2066.2,2065.3,1.21047789]
[1772734191544,0.001,2066.2,2065.3,3.21839101]
[1772734191981,0.001,2066.2,2065.3,2.00791312]
[1772734192491,1.21095063,2066.2,2065.3,2.00791312]
[1772734192655,1.21095063,2066.2,2065.2,0.798]
[1772734192656,2.38635141,2066.1,2065.2,0.798]
[1772734192836,2.38635141,2066.1,2065.2,2.00853325]
[1772734193245,1.21095063,2066.2,2065.3,2.00791312]
[1772734193450,0.001,2066.2,2065.3,2.00791312]
[1772734193670,2.38735141,2066.2,2065.3,2.00791312]
[1772734194571,1.21000919,2066.1,2065.4,1.21041928]
[1772734194946,1.21000919,2066.1,2065.4,3.2183324]
[1772734196868,3.59730665,2066.2,2065.4,3.2183324]
[1772734197169,1.21095198,2066.2,2065.5,2.00791312]
[1772734198469,3.59730339,2066.2,2065.4,3.21833231]
[1772734199660,3.59730339,2066.2,2065.5,2.00791312]
[1772734199661,1.21095198,2066.2,2065.5,2.00791312]
[1772734200671,1.21095198,2066.2,2065.7,2.5679428]
[1772734200672,0.001,2066.2,2065.7,2.5679428]
[1772734201094,1.20981538,2066.5,2065.8,2.5669428]
[1772734201275,3.62713905,2066.4,2065.5,2.55138592]
[1772734201775,1.20981538,2066.5,2065.5,2.55138592]
[1772734202177,3.62713905,2066.4,2065.6,0.0011]
[1772734202379,0.001,2066.2,2065.6,0.0011]
[1772734202754,0.001,2066.2,2065.7,3.74614629]
[1772734203658,0.001,2066.2,2065.7,2.53590279]
[1772734203956,0.001,2066.2,2065.6,0.0011]
[1772734204159,0.001,2066.2,2065.7,2.50496373]
[1772734204396,8.46579919,2066.7,2065.7,2.50496373]
[1772734204397,1.20959938,2066.9,2065.8,2.50496373]
[1772734204556,1.20959938,2066.9,2066.0,2.50496373]
[1772734204758,3.62713905,2066.8,2066.0,1.21003401]
[1772734205784,3.62713905,2066.8,2066.0,3.69957838]
[1772734205992,1.20959938,2066.9,2066.1,2.48954437]
[1772734206880,1.20959938,2066.9,2066.2,1.20995063]